Workbook

Sheet Introduction
G4: S12ZVM Power Dissipation Calculator
B8: Introduction
B9: Thermal analyses are difficult to perform and would require sophisticated methods, e.g. measurements or simulations.
B10: For exact modeling, the thermal model should include the IC and its housing, PCB board, ECU housing, other components on the PCB board,
B11: and their interactions/coupling, as shown as an example in the thermal equivalent circuit diagram: figure 1.
B12: Dynamic behaviour (thermal impedance rather than thermal resistance) could also play a role here.
B14: This calculator does not provide that level of detail, but is intended to do some basic analysis.
B16: Recommended use
B17: A required thermal resistance Rthja (junction ambient) for the IC can be calculated based on application/ambient conditions and reference manual data.
B18: As guideline this required Rthja can be compared with the Rthja values provided in the reference manual which are simulated to be equivalent to the JEDEC
B19: specification JESD51-2 or JESD51-7 in a horizontal configuration in natural convection.
B20: These show examples of
B21: - "poor" thermal resistance (guideline is a single sided PCB) and
B22: - "good" thermal resistance (guildeline is a 4 layer PCB).
B25: There are several contributors to the total power dissipation of the S12ZVM device.
B27: Power dissipation and thermal characteristics are closely related. The user must assure that the maximum operating junction temperature is not exceeded.
B28: The average chip-junction temperature (TJ) in °C can be obtained from:
D29: TJ = TA + (PD • ΘJA)
B30: with:
B31: TJ = Junction Temperature, [°C] | F31: PD = Total Chip Power Dissipation, [W]
B32: TA = Ambient Temperature, [°C] | F32: ΘJA = Package Thermal Resistance, [°C/W]
B34: This calculator helps to understand if the application uses the S12ZVM within the allowed die temperature limit .
B35: It also helps to understand under which application conditions the user could use a more cost optimized, lower temperature tested device option.
B37: The total power dissipation PD can be calculated from the equation below.
C38: PD = PVreg + PGDU + PCP + PBoost + PLIN
B39: with:
B40: PD = Total Chip Power Dissipation, [W] | F40: PVreg = Power Dissipation in the Main Voltage Regulator, [W]
B41: PGDU = Power Dissipation in the Gate Drive Unit, [W] | F41: PCP = Power Dissipation in the Charge Pump, [W]
B42: PBoost = Power Dissipation in the Boost Converter, [W] | F42: PLin = Power Dissipation in the LIN Transceiver, [W]
B44: The yellow fields are user entry fields.
B45: Please select following conditions and enter it into the yellow fields accordingly
B46: Step 1 - Parameter Entry
B47: Device Selection
B48: - Select between our device list: S12ZVML12, S12ZVMC256, S12ZVM32, S12ZVMB, S12ZVMA
B49: - Fields like GDU version and LIN/CAN modules are enable or dissable automatically according to device selected
B50: Voltage regulator Parameters:
B51: - Vbat : Max. Battery Voltage condition (max. 20/26V) --> If boost mode is used , please also check the calculator result at 10.7V Vsup, which is the maximum input voltage using the boost mode!
B52: - Vreg intern/extern: selection if external bypass transistor used to dissipate current of 5V supply load externally (option Vreg extern)
B53: - Vdrop: Voltage drop on the reverse polarity protection device
B54: - Base current: if external bypass transistor used, then Base current has to be specified
B55: Digital logic Parameters:
B56: - f_clk : select the bus frequency (max. 50MHz)
B57: - I_external : external load current on IOs like for sensor supply
B58: Gate Drive Unit Parameters:
B59: - switching algorithm : select between sinusoidal commutation , which switches all 6 MOSFETs with given PWM frequency, or block commutation, which switches only two phases at a time.
B60: (2 MOSFETs with full PWM frequency, 4 others with low frequency given by the max. motor speed)
B61: - f_PWM: switching frequency of the MOSFETs
B62: - Total gate Charge: parameter of the selected MOSFETs
B63: - motor speed mechanical: max. motor speed, which influences the switching frequency of the 4 slower switching MOSFETs when using block commutation
B64: - pole pairs: number of permanent magnet pole pairs of the motor
B65: Charge Pump Parameters:
B66: - Charge Pump use : select if application uses charge pump to support 100% duty cycle and reverse polarity protection MOSFET gate drive .
B67: - nbr. of high side drivers : select how many phases are driven by the CP
B68: Boost Converter Parameters:
B69: - Boost Converter use : select if application uses boost converter to support motor drive down to 3.5V Vbat
B70: - Boost frequency : select switching frequency of MOSFET in boost converter (from f_bus/512 to f_bus/4 )
B71: - Boost frequency duty cycle : select duty cycle of the MOSFET switching frequency in boost converter (24%, 50% or 75% )
B72: - Boost Incuctance : size of external coil. The smaller the value, the higher the coil current and the power dissipation in the Boost Converter
B73: LIN Parameters:
B74: - LIN transceiver use : select if application uses LIN transceiver in the device (also needs to be enabled if transceiever used for PWM protocol)
B75: Temperature:
B76: - Ambient temperature : selects the ambient temperature of the S12ZVM device
B77: Thermal resistance
B78: - Rth total : selects the thermal resistance between the board and the die (cell C35)
B80: Step 2 - Result verification
B81: Check the resulting Tj field (C41). Check it for different Vbat entry values, especially also select a value <10.8V Vsup to test the Boost converter influence, if Boost mode used.
B82: If the field is green your setup is within the specification limit of 175°C max. die temperature. If it is red, your resulting chip temperature is above 175°C.
B83: The traffic light in the field gives you a yellow warning if within the 10% range of the max. limit
B84: If the field shows a spec violation. Or in case you select a lower temperature variant and the result exceeds the max. temperature of this variant step 3 is needed (for example 125°C for the M-temp option)
B85: The shown value max Rth total in cell C43 give you a guideline, which Rth is needed to meet the max. Tj limit.
B86: In case you are much below the Tj limit, you may be able to reduce the board space and can increase the Rth value up to the proposed value.
B87: In case you are above the Tj limit, this field gives you a guideline up to which Rth you would need to optimize your board layout if all other system parameters stay the same.
B89: Step 3 - System Optimization
B90: Check possible optimizations in your system. This can be for example:
B91: - reduction of the bus frequency
B92: - Boost converter settings (coil, frequency, duty cycle)
B93: - commutation algorithm
B94: - reduction of the thermal resistance (optimization of board layout)

Sheet Power Calculator
G4: MagniV Power Dissipation Calculator | R4: Rev 5
B7: Summary | F7: ❶ Select the Device Part Number: | G7: S12ZVML12
D8: Unit
A9: Power Dissipation | B9: Summary: Total Power Dissipation | V9: For all, except S12ZVMB | Y9: For all, except S12ZVMC256 | AB9: For S12ZVMB64 | AE9: For S12ZVMC256
B10: Pdigital | C10: =K43 -> 184 | D10: mW | F10: Power Supply | I10: Digital Logic | M10: Gate Drive Unit | S10: Charge Pump | V10: Boost Converter | Y10: LIN Transceiver | AB10: High-Side Drivers | AE10: CAN Transceiver
B11: PVreg | C11: =G43 -> 596.7 | D11: mW | H11: Unit | L11: Unit | O11: Unit | R11: Unit | U11: Unit | X11: Unit | AA11: Unit | AD11: Unit | AG11: Unit
B12: PVDDS1,2 | C12: =G35+G40 -> 0 | D12: mW | F12: Vbat | G12: 18 | H12: V | I12: fbus | K12: 10 | L12: MHz | M12: Vsup | N12: =G17 -> 17.75 | O12: V | P12: GDU in use ? | Q12: Yes | S12: Charge Pump in use ? | T12: Yes | V12: Boost-Converter in use ? | W12: Yes | Y12: LIN-Module in use ? | Z12: Yes | AE12: CAN-Module in use ? | AF12: Yes
B13: PGDU | C13: =N43 -> 262.7403671 | D13: mW | F13: V_reg intern ? | G13: Yes | P13: Phases Available | Q13: =IF(G7="S12ZVML12","3-Phase GDU",IF(G7="S12ZVMB","2-phase GDU",IF(G7="S12ZVMA","1-phase GDU",IF(G7="S12ZVM32","3-Phase GDU","3-Phase GDU")))) -> 3-Phase GDU | S13: Number of high side drivers ? | T13: 3 | V13: Vboost_in (HD = rev. prot. Vbat) | W13: =N12 -> 17.75 | X13: V | Y13: V_lin_sup | Z13: =G17 -> 17.75 | AA13: V | AB13: V_sup_hs | AC13: =G17 -> 17.75 | AD13: V | AE13: Vddc_sup | AF13: =G17 -> 17.75 | AG13: V
B14: PCP | C14: =T43 -> 1.1907 | D14: mW | P14: GDU revision | Q14: =IF(G7="S12ZVML12","v4",IF(G7="S12ZVM32","v5",IF(G7="S12ZVMC256","v6","v5"))) -> v4 | AE14: Voltage Regulator
B15: PBoost | C15: =W43 -> 0 | D15: mW | F15: internal voltage regulator option | M15: ❶Low Drop Out voltage regulator | V15: Vboost_out | W15: =IF(W13*(W28+W29)/W29>10.8,11,W13*(W28+W29)/W29) -> 11 | X15: V | Y15: Data rate | Z15: 20 | AA15: KBaud | AB15: HS0 in use | AC15: Yes | AE15: Regulated Voltage | AF15: 5 | AG15: V
B16: PLIN | C16: =Z43 -> 33.76213021 | D16: mW | F16: V_drop-->circuit protection | G16: 0.25 | H16: V | I16: Vdigital _in | K16: =IF(G17>4.9,5,G17) -> 5 | L16: V | M16: VLDO_out = VVLS_OUT | N16: =IF((N12-0.3)>11,11,N12-0.3) -> 11 | O16: V | S16: VCP_in [=VLDO_out ] | T16: =N16 -> 11 | U16: V | Y16: static part | AB16: Load current HS0 | AC16: 50 | AD16: mA | AE16: Base current | AF16: 1 | AG16: mA
B17: PHS | C17: =AC43 -> 0 | D17: mW | F17: V_sup | G17: =G12-G16 -> 17.75 | H17: V | I17: Idigital_dynamic gradient | K17: =IF(G7="S12ZVML12",0.48,IF(G7="S12ZVMB",0.67,IF(G7="S12ZVMA",0.67,IF(G7="S12ZVM32",0.411,IF(G7="S12ZVC",0.4,IF(G7="S12ZVL",0.39,0.57)))))) -> 0.48 | L17: mA/MHz | M17: Vdrop | N17: =N12-N16 -> 6.75 | O17: V | P17: ❷Operational Amplifiers | S17: VCP_out | T17: =G17+T16-2*0.7 -> 27.35 | U17: V | V17: Idigital = IVDDX | W17: =K27 -> 46.8 | X17: mA | Y17: Pv_recessive state | AE17: PBCTLC | AF17: =AF16*(AF13-0.7) -> 17.05 | AG17: mW
B18: PCAN | C18: =AF43 -> 0 | D18: mW | F18: V_out | G18: =IF(G17>4.9,5,G17) -> 5 | H18: V | M18: ILDO_static | N18: 0.2 | O18: mA | P18: Number of Shunts | Q18: 2 | V18: IVSUP ( IGDU + Iexternal + ILIN) | W18: =Q41 -> 14.28424603 | X18: mA | Y18: on V-lin_sup | Z18: =(10*0.000001/12)*Z13*1000*Z13 -> 0.2625520833 | AA18: mW | AB18: HS1 in use | AC18: Yes | AE18: CAN Traffic
B19: Ptotal | C19: =C10+C11+C12+C13+C14+C15+C16+C17+C18 -> 1078.393197 | D19: mW | F19: V_drop | G19: =IF(G17-G18>0,G17-G18,0) -> 12.75 | H19: V | M19: ILDO_Load = IGD+ICP | N19: =Q37+T19 -> 14.64 | O19: mA | P19: IGDU_OPAMP | Q19: =Q18*0.3 -> 0.6 | R19: mA | S19: Iload | T19: =T13*N34*0.001 -> 2.1 | U19: mA | V19: Iload | W19: =IF(G13="Yes",W18,W17+W18) -> 14.28424603 | X19: mA | Y19: on Vddx | Z19: 3.17 | AA19: mW | AB19: Load current HS1 | AC19: 50 | AD19: mA | AE19: CAN frame Duty Cycle | AF19: 50 | AG19: %
M20: PGDU_LDO | N20: =IF(N16>6.2,N17*Q37+N18*N12,0) -> 88.195 | O20: mW | P20: PGDU_OPAMP | Q20: =G18*Q19 -> 3 | R20: mW | Y20: on Vdd | Z20: 0.14 | AA20: mW | AE20: CAN bit Duty Cycle | AF20: 50 | AG20: %
I21: Idigital = IVDDX | J21: dynamic | K21: =K12*K17 -> 4.8 | L21: mA | V21: Rdson | W21: 1.4 | X21: Ohm | Y21: Pv_rez | Z21: =SUM(Z18:Z20) -> 3.572552083 | AA21: mW | AB21: HSx Rds-on | AC21: 18 | AD21: Ω | AE21: CAN dominant state | AF21: =AF19*AF20/100 -> 25 | AG21: %
F22: PVreg_int | G22: =(G19*K27) -> 596.7 | H22: mW | J22: static | K22: =IF(G7="S12ZVML12",32,IF(G7="S12ZVMB",9.97,IF(G7="S12ZVMA",9.97,IF(G7="S12ZVM32",20.02,IF(G7="S12ZVC",28.5,IF(G7="S12ZVL",9,21.2)))))) -> 32 | L22: mA | M22: ❸ Gate Driver dynamic part | V22: IIN = ILAVG | W22: =W15*W19/W13 -> 8.852208808 | X22: mA | AE22: CAN recessive state | AF22: =100-AF21 -> 75 | AG22: %
F23: external voltage regulator option | K23: =K21+K22 -> 36.8 | L23: mA | M23: switching algorithm | N23: sine commutation | P23: # of MOSFETs in operation | Q23: =IF(N23="DC motor - HS only", 1, IF(N23="DC motor",2,6)) -> 6 | S23: Rdson_HS | T23: 100 | U23: Ohm | V23: Pboost_static (Conduction losses) | W23: =IF(W13<10.8,W22 * W22 /1000000 * W21 * W28/(W28+W29) * 1000,0) -> 0 | X23: mW | Y23: Pv_ dominant state | AB23: static part | AE23: Transceiver current
M24: # of MOSFETs GD_PWM switched | N24: =IF(N23="sine commutation",6,IF(N23="DC motor - HS only",1,2)) -> 6 | O24: pcs. | P24: # of MOSFETs slow_PWM switched | Q24: =IF(N23="block commutation",2,0) -> 0 | S24: Rdson_LS | T24: 35 | U24: Ohm | Y24: on V_lin_sup | Z24: =(328*0.000001/12)*Z13*1000*Z13 -> 8.611708333 | AA24: mW | AB24: P_HS0 | AC24: =IF(AC15="No",0,1000*(AC16/1000)^2*AC21) -> 45 | AD24: mW | AE24: IDOM, Dominant State | AF24: ='S12CANPHY Electrical Specs'!D6 -> 3.8 | AG24: mA
F25: Base current | G25: 1 | H25: mA | I25: Iexternal | K25: 10 | L25: mA | M25: Total Gate Charge of MOSFET | N25: 80 | O25: nC | P25: fmotor_mech | Q25: 10000 | R25: rpm | V25: fboost | W25: 100 | X25: KHz | Y25: on Vddx | Z25: 5.5 | AA25: mW | AE25: IRES, Recessive State | AF25: ='S12CANPHY Electrical Specs'!D5 -> 1.7 | AG25: mA
M26: fGD_PWM | N26: 20 | O26: kHz | P26: Pole pairs | Q26: 2 | R26: pair | S26: PCP_push_pull | T26: =(T23*4*(T19*T19)*0.000001*0.5+T24*4*(T19*T19)*0.000001*0.5)*1000 -> 1.1907 | U26: mW | Y26: on Vdd | Z26: 0.14 | AA26: mW | AB26: P_HS1 | AC26: =IF(AC18="No",0,1000*(AC19/1000)^2*AC21) -> 45 | AD26: mw | AE26: I_static, average | AF26: =AF24*(AF21/100)+AF25*(AF22/100) -> 2.225 | AG26: mA
I27: Itotal | K27: =K23+K25 -> 46.8 | L27: mA | M27: IGD_dynamic_avg_total | N27: =1000*(N24*(N25*0.000000001)*(N26*1000)) -> 9.6 | O27: mA | P27: fmotor_elec | Q27: =(Q25/60*Q26) -> 333.3333333 | R27: Hz | V27: Duty cycle | W27: 75 | X27: % | Y27: Pv_dom | Z27: =SUM(Z24:Z26) -> 14.25170833 | AA27: mw | AE27: PCAN_static | AF27: =AF26*AF15 -> 11.125 | AG27: mW
F28: PVreg_ext | G28: =G25*(G17-0.7) -> 17.05 | H28: mW | P28: fGD_PWM_LS_SLOW | Q28: =3/2*Q27 -> 500 | R28: Hz | V28: tON | W28: =(W27/100*1/W25)*1000 -> 7.5 | X28: µs | AE28: CANH/CANL | AH28: min, typ, max
P29: IGD_dynamic_avg_slow_total | Q29: =IF(N23="block commutation",Q28*(N25*0.000000001)*1000*Q24,0) -> 0 | R29: mA | V29: tOFF | W29: =((100-W27)/100*1/W25)*1000 -> 2.5 | X29: µs | Y29: Pv_Lin_static | Z29: =(Z21+Z27)*0.5 -> 8.912130208 | AA29: mW | AE29: VCANH - VCANL (dom) | AF29: 3 | AG29: V | AH29: 1.5, 2.0, 3.0
F30: Only for S12ZVMC256 | M30: PGDU_GD_dynamic_PWM | N30: =N27*N16 -> 105.6 | O30: mW | P30: PGDU_GD_dynamic_SLOW | Q30: =Q29*N16 -> 0 | R30: mW | V30: Inductance L | W30: 100 | X30: µH | AE30: VCANH - VCANL (rec) | AF30: 0.05 | AG30: V | AH30: -0.5, 0, 0.05
F31: VDDS1 sensor voltage regulator option | M31: PGDU_GD_dynamic | N31: =N30+Q30 -> 105.6 | R31: mW | V31: DI | W31: =(W13/W30)*W28*1000 -> 1331.25 | X31: mA | Y31: dynamic part | AB31: dynamic part | AC31: TBD | AE31: Bus Impedance | AF31: 60 | AG31: Ω
A32: Temperature | B32: Temperature | F32: VDDS1 in use ? | G32: No | V32: IMAX | W32: =W22+W31/2 -> 674.4772088 | X32: mA | AE32: I_out (dom) | AF32: =1000*AF29/AF31 -> 50 | AG32: mA
F33: Base current | G33: 1 | H33: mA | M33: ❹ Gate Driver static part | P33: Summary: GDU Current Consumption | V33: Pboost_dynamic (Switching losses) | W33: =IF(W13<10.8,(((1/6* (W22-W31/2)/1000 *(0.7+W15)*0.00000004*W25*1000)+(1/6* (W22+W31/2)/1000*(0.7+W15)*0.00000004*W25*1000))*1000),0) -> 0 | X33: mW | Y33: power loss factor | Z33: 1.4 | AA33: mW/V | AE33: I_out (rec) | AF33: =1000*AF30/AF31 -> 0.8333333333 | AG33: mA
B34: T ambient C° | C34: 105 | D34: °C | M34: IGD_static_on | N34: =IF(Q14="v5",600,700) -> 700 | O34: µA | P34: ILDO_static | Q34: =N18 -> 0.2 | R34: mA | Y34: Pv_Lin_dynamic | Z34: =Z13*Z33 -> 24.85 | AA34: mW | AB34: Pv_HS0_dynamic | AC34: 0 | AD34: mW | AE34: I_out (average) | AF34: =AF32*(AF21/100)+AF33*(AF22/100) -> 13.125 | AG34: mA
B35: Rth total | C35: 46 | D35: °C/W | F35: PVDDS1 | G35: =IF(G7="S12ZVMC256",IF(G32="Yes",G33*(G$17-0.7),0),0) -> 0 | H35: mW | M35: IGD_static_off | N35: =IF(Q14="v5",200,280) -> 280 | O35: µA | P35: IGD_static | Q35: =N36 -> 2.94 | R35: mA | V35: Boost converter Mode | W35: =IF((W22-(W31/2))>0,"Continuous","Discontinuous") -> Discontinuous | AE35: PIN | AF35: =AF15*AF34 -> 65.625 | AG35: mW
F36: VDDS2 sensor voltage regulator option | M36: IGD_static | N36: =IF(N24=6,N24/2*N34*0.001+N24/2*N35*0.001,N24*N34*0.001+(Q23-N24)*N35*0.001) -> 2.94 | O36: mA | P36: IGD_dynamic | Q36: =IF(N24=6,N27,N27+Q29) -> 9.6 | R36: mA | AB36: Pv_HS1_dynamic | AC36: 0 | AD36: mW
B37: T Junction | C37: =C34+(C19*0.001*C35) -> 154.6060871 | D37: °C | F37: VDDS2 in use ? | G37: No | M37: PGDU_GD_static | N37: =G17*N36 -> 52.185 | O37: mW | P37: IGD | Q37: =Q35+Q36 -> 12.54 | R37: mA | AE37: P_load (dom) | AF37: =AF29*AF32 -> 150 | AG37: mW
F38: Base current | G38: 1 | H38: mA | P38: IOpAmp | Q38: =Q19 -> 0.6 | R38: mA | V38: ratioBoost_on | W38: =1/(W22-W19) -> -0.1840929947 | AE38: P_load (rec) | AF38: =AF30*AF33 -> 0.04166666667 | AG38: mW
B39: Input parameters possible if | M39: ❺ Measuring ciruit losses (HD/Phase Voltage dividers) | P39: Imeas | Q39: =N40 -> 0.9442460317 | R39: mA | V39: ratioBoost_off | W39: =1/W19 -> 0.07000719518 | AB39: PHS0 | AC39: =AC24+AC34 -> 45 | AD39: mW | AE39: P_load (average) | AF39: =AF37*AF21/100+AF38*AF22/100 -> 37.53125 | AG39: mW
B40: Max Rth total | C40: =(C42-C34)/(C19*0.001) -> 64.9113887 | D40: °C/W | F40: PVDDS2 | G40: =IF(G7="S12ZVMC256",IF(G37="Yes",G38*(G$17-0.7),0),0) -> 0 | H40: mW | M40: IMEAS | N40: =0.13+(N12 / 63000*1000)+(3*(N12/100000*1000)) -> 0.9442460317 | O40: mA | V40: Averaging factor | W40: =W38/(W39+W38) -> 1.613636364 | AB40: PHS1 | AC40: =AC26+AC36 -> 45 | AD40: mW | AE40: PIN - PLOAD | AF40: =AF35-AF39 -> 28.09375 | AG40: mW
M41: PGDU_MEAS | N41: =N12*N40 -> 16.76036706 | O41: mW | P41: IGDU | Q41: =Q34+Q37+Q38+Q39 -> 14.28424603 | R41: mA
B42: Max Tj | C42: 175 | D42: °C
F43: PVreg | G43: =IF(G13="No",G28,G22) -> 596.7 | H43: mW | I43: Pdigital | K43: =K23*K16 -> 184 | L43: mW | M43: PGDU | N43: =IF(G7="S12ZVC",0,IF(G7="S12ZVL",0,IF(Q12="Yes",N20+N31+N37+N41,0))) -> 262.7403671 | O43: mW | S43: PCP | T43: =IF(G7="S12ZVC",0,IF(G7="S12ZVL",0,IF(T12="Yes",T26,0))) -> 1.1907 | U43: mW | V43: PBoost | W43: =IF(G7="S12ZVC",0,IF(G7="S12ZVL",0,IF(G7<>"S12ZVMB",IF(W12="No",0,(W33+W23)*W40),0))) -> 0 | X43: mW | Y43: PLIN | Z43: =IF(G7="S12ZVC",0,IF(G7<>"S12ZVMC256",IF(Z12="YES",Z29+Z34,0),0)) -> 33.76213021 | AA43: mW | AB43: PHS | AC43: =IF(G7="S12ZVMB",(AC39+AC40),0) -> 0 | AD43: mW | AE43: PCAN | AF43: =IF(G7="S12ZVMC256",IF(AF12="YES",AF17+AF27+AF40,0),0) -> 0 | AG43: mW
C45: 20°C/W for LQFP80-EP | AE45: External Voltage Regulator (Reference only)
AE46: Total Current | AF46: =AF26+AF34 -> 15.35 | AG46: mA
AE47: Power dissipation | AF47: =AF46*(AF13-AF15) -> 195.7125 | AG47: mW

Sheet Revision History
A3: Date | B3: Revision | C3: Description
A4: 2017-03-16 | B4: Rev 4 | C4: Added S12ZVMB gradient (.67) and static current
C5: Added S12ZVMC256 gradient (.58) and static current
C6: Added S12ZVM32 gradient (.41) and static current
A7: 2018-02-22 | B7: Rev 5 | C7: Added S12ZVC MCU
C8: Added S12ZVL MCU
C9: Improved Interface

Sheet S12CANPHY Electrical Specs
A1: S12CANPHY Electrical Specifications (from MC9S12ZVM_RM_V2.5.pdf)
A3: Description | B3: Symbol | C3: MIN | D3: TYP | E3: MAX | F3: UNITS
A4: Transceiver Current
A5: CANPHY Supply current, Normal mode, Bus in Recessive State | B5: IRES | D5: 1.7 | F5: mA
A6: CANPHY Supply current, Normal mode, Bus in Dominant State without Bus Load | B6: IDOM | D6: 3.8 | F6: mA
A7: CANPHY Supply current, Standby mode | B7: ISTB | D7: 0.022 | F7: mA
A8: CANPHY Supply current, Shutdown mode | B8: ISDN | D8: 0 | F8: mA
A9: CANH & CANL pins
A10: Differential Input Voltage, Normal, recessive | B10: VCANH-VCANL | C10: -1 | E10: 0.5 | F10: V
A11: Differential Input Voltage, Normal, dominant | B11: VCANH-VCANL | C11: 0.9 | E11: 5 | F11: V
A12: Differential Input Voltage, Standby, recessive | B12: VCANH-VCANL | C12: -1 | E12: 0.4 | F12: V
A13: Differential Input Voltage, Standby, dominant | B13: VCANH-VCANL | C13: 1.1 | E13: 5 | F13: V
A14: Diff Input Hysteresis | B14: VHYS | D14: 0.175 | F14: V
A15: Input Resistance | B15: RIN | C15: 5 | D15: 32.5 | E15: 50 | F15: KΩ
A16: Differential Input Resistance | B16: RIND | C16: 10 | D16: 65 | E16: 100 | F16: KΩ | G16: =2*RIN
A17: Common Mode Input Resistance matching | B17: RINM | C17: -3 | D17: 0 | E17: 3 | F17: %
A18: CANH Output Voltage (RL=60Ω, normal mode, TXD Dominant) | B18: VCANH | C18: 2.75 | D18: 3.5 | E18: 4.5 | F18: V
A19: CANH Output Voltage (RL=60Ω, normal mode, TXD Recessive) | B19: VCANH | C19: 2 | D19: 2.5 | E19: 3 | F19: V
A20: CANL Output Voltage (RL=60Ω, normal mode, TXD Dominant) | B20: VCANL | C20: 0.5 | D20: 1.5 | E20: 2.25 | F20: V
A21: CANL Output Voltage (RL=60Ω, normal mode, TXD Recessive) | B21: VCANL | C21: 2 | D21: 2.5 | E21: 3 | F21: V
A22: Differential Output Voltage (RL=60Ω, normal mode, TXD Dominant) | B22: VOH-VOL | C22: 1.5 | D22: 2 | E22: 3 | F22: V
A23: Differential Output Voltage (RL=60Ω, normal mode, TXD Recessive) | B23: VOH-VOL | C23: -0.5 | D23: 0 | E23: 0.05 | F23: V
A25: Output Current (RL=60Ω, normal mode, TXD Dominant) | C25: =C22/60 -> 0.025 | D25: 0.03333333333 | E25: 0.05 | F25: mA
A26: Output Current (RL=60Ω, normal mode, TXD Recessive) | C26: -0.008333333333 | D26: 0 | E26: 0.0008333333333 | F26: mA
C28: calculated values, not in datasheet
